bitfinex-derivatives/quotes_ETHF0:USTF0_20250807
["timestamp","ask_amount","ask_price","bid_price","bid_amount"]
[1754598781059,5.0596,3860.3,3860.2,3.85898]
[1754598781356,5.0596,3860.3,3860.2,5.34158]
[1754598781659,46.79877145,3860.3,3860.2,5.34158]
[1754598781858,46.79877659,3860.3,3860.2,5.34158]
[1754598782155,4.3169,3860.7,3860.4,0.5972]
[1754598782362,7.0314,3860.7,3860.6,5.34152]
[1754598782566,4.76444515,3860.7,3860.6,5.34152]
[1754598782757,4.07145089,3860.7,3860.6,5.34152]
[1754598783157,4.76510132,3860.7,3860.6,4.26002]
[1754598783357,5.64290132,3860.7,3860.6,4.26002]
[1754598784260,4.07145089,3860.7,3860.6,4.26002]
[1754598784567,0.24785089,3860.7,3860.6,5.34152]
[1754598784858,3.8236,3861.0,3860.9,5.34148]
[1754598785053,2.54535084,3861.0,3860.9,5.34148]
[1754598785258,1.8518,3861.0,3860.9,5.34148]
[1754598785662,3.2078,3861.1,3860.9,5.34148]
[1754598785864,5.0596,3861.1,3861.0,4.8236]
[1754598786463,0.7427,3861.6,3861.5,1.6992]
[1754598786664,3.8236,3861.6,3861.5,5.3414]
[1754598786970,4.7014,3861.6,3861.5,3.7421]
[1754598787360,1.8518,3861.6,3861.5,2.9625]
[1754598787561,3.8236,3861.6,3861.5,4.8236]
[1754598790065,1.8518,3861.6,3861.5,4.8236]
[1754598791161,2.4391,3861.6,3861.5,4.8236]
[1754598791366,3.8236,3861.6,3861.5,4.8236]
[1754598797173,3.2964,3861.9,3861.8,5.20596]
[1754598797375,2.4183,3861.9,3861.8,5.20596]
[1754598797876,3.8363,3861.9,3861.8,5.20596]
[1754598798267,3.2078,3862.0,3861.8,5.20596]
[1754598798567,3.2078,3862.0,3861.9,4.6882]
[1754598798874,4.3329,3862.0,3861.9,4.6882]
[1754598799071,1.1251,3862.0,3861.9,4.6882]
[1754598800374,1.1251,3862.0,3861.9,4.891172]
[1754598800575,3.2078,3862.4,3862.2,5.20591]
[1754598800773,3.2078,3862.4,3862.3,2.8275]
[1754598800970,3.2078,3862.4,3862.3,4.6882]
[1754598801174,5.0742,3862.4,3862.3,4.6882]
[1754598801376,6.166,3862.4,3862.3,4.6882]
[1754598801671,7.0441,3862.4,3862.3,4.6882]
[1754598801869,7.0441,3862.4,3861.8,1.2944]
[1754598801870,5.0742,3862.4,3862.1,0.51772]
[1754598802070,2.5431,3861.9,3861.8,3.3694]
[1754598802267,3.8363,3861.9,3861.8,4.6882]
[1754598802873,3.8363,3861.9,3861.8,5.20596]
[1754598804479,3.8363,3861.9,3861.8,1.64816]
[1754598804677,3.8363,3861.9,3861.8,5.20596]
[1754598806078,4.7397,3861.9,3861.8,1.35256]
[1754598806476,4.7397,3861.9,3861.8,5.20596]
[1754598807381,3.8363,3861.9,3861.8,5.20596]
[1754598809678,4.7397,3861.9,3861.8,3.32646]
[1754598810073,4.7397,3861.9,3861.8,5.20596]
[1754598810278,3.8363,3861.9,3861.8,5.20596]
[1754598812578,3.8363,3861.9,3861.8,3.32646]
[1754598812780,7.0441,3861.9,3861.8,3.32646]
[1754598813184,7.9475,3861.9,3861.8,3.32646]
[1754598814188,8.64265251,3861.9,3861.8,3.32646]
[1754598814388,8.89051274,3861.9,3861.8,4.47566]
[1754598814685,7.98719585,3861.9,3861.8,5.20596]
[1754598814885,47.66115251,3861.9,3861.8,5.20596]
[1754598815085,48.78719705,3861.9,3861.8,5.20596]
[1754598815689,48.53925251,3861.9,3861.8,5.20596]
[1754598815986,1.8664,3862.4,3862.3,2.37839]
[1754598816188,1.8664,3862.4,3862.3,5.20589]
[1754598816486,44.24007667,3862.4,3861.7,1.29444]
[1754598816687,44.24007667,3862.4,3861.9,0.51775]
[1754598816688,4.7397,3862.0,3861.9,0.51775]
[1754598816888,4.7397,3861.9,3861.8,0.51775]
[1754598818785,4.7397,3861.9,3861.8,1.35255]
[1754598819087,4.7397,3861.9,3861.8,1.94105]
[1754598821892,3.8363,3861.2,3861.1,5.20605]
[1754598822188,0.92740703,3861.6,3861.4,2.37851]
[1754598822388,1.1251,3861.9,3860.8,0.21122476]
[1754598822389,1.8331,3861.7,3860.8,0.21122476]
[1754598822591,3.8363,3861.5,3861.4,1.64821]
[1754598822892,3.8363,3861.5,3861.4,3.52771]
[1754598823092,3.8363,3861.5,3861.4,5.18911]
[1754598823488,4.50987667,3861.9,3861.8,1.62896]
[1754598823788,4.74165653,3861.9,3861.8,4.6721]
[1754598824390,3.0099,3861.9,3861.8,4.6721]
[1754598824693,1.8842,3861.9,3861.8,4.6721]
[1754598825493,2.6989,3862.1,3862.0,2.6887]
[1754598825688,3.5543,3862.1,3862.0,4.6721]
[1754598825893,3.5543,3862.1,3862.0,2.7726]
[1754598826093,4.6697,3862.1,3862.0,2.7726]
[1754598826394,4.6697,3862.1,3862.0,1.9437]
[1754598827894,4.6697,3862.1,3862.0,2.7726]
[1754598829595,2.04286955,3862.2,3862.1,4.35732]
[1754598829785,1.1154,3862.2,3862.1,5.18982]
[1754598830191,1.8842,3862.2,3862.1,5.18982]
[1754598830696,0.92746955,3862.3,3862.1,2.37392]
[1754598830887,1.1154,3862.5,3862.3,0.51769]
[1754598831088,1.1154,3862.5,3862.4,4.6721]
[1754598831294,42.6842,3862.5,3862.4,4.6721]
[1754598831494,44.42104588,3862.5,3862.4,4.6721]
[1754598831894,3.62104588,3862.5,3862.4,4.6721]
[1754598832099,2.6886,3862.5,3862.4,4.6721]
[1754598832503,3.8143,3862.5,3862.4,4.6721]
[1754598834100,3.8143,3862.3,3862.2,2.7726]
[1754598834605,44.6143,3862.3,3862.2,2.7726]
[1754598834906,44.6143,3862.3,3862.2,4.6721]
[1754598835699,45.4697,3862.3,3862.2,3.5176]
[1754598836300,45.4697,3862.3,3862.2,2.7726]
[1754598837906,45.4697,3862.3,3862.2,1.9437]
[1754598838715,45.4697,3862.3,3862.2,2.7726]
[1754598839307,62.4933,3862.3,3862.2,4.6721]
[1754598840213,63.19270014,3862.3,3862.2,4.6721]
[1754598840607,64.04810014,3862.3,3862.2,4.6721]
[1754598841114,62.4933,3862.3,3862.2,4.6721]
[1754598842712,63.19262503,3862.3,3862.2,4.6721]
[1754598842914,62.4933,3862.3,3862.2,4.6721]
[1754598843115,63.19268283,3862.3,3862.2,4.6721]
[1754598843305,1.9198,3862.2,3861.7,1.29444]
[1754598843510,4.6697,3862.2,3862.1,1.9437]
[1754598843709,4.6697,3862.2,3862.1,2.7726]
[1754598844709,3.8143,3862.2,3862.1,4.6721]
[1754598849510,1.8842,3862.2,3862.0,0.51773]
[1754598849712,1.8945,3861.9,3861.8,0.51777]
[1754598849911,22.5207,3861.9,3861.8,0.8325]
[1754598850107,1.8945,3861.7,3861.6,2.17919]
[1754598850313,45.4697,3861.7,3861.6,1.6614]
[1754598850509,1.8945,3861.2,3861.1,2.37407]
[1754598850716,3.8143,3861.2,3861.1,5.18997]
[1754598851421,1.8842,3861.2,3861.1,5.18997]
[1754598852114,1.8842,3861.6,3861.5,2.374]
[1754598852320,19.7352,3861.6,3861.5,2.374]
[1754598852714,19.7352,3861.6,3861.5,5.1899]
[1754598853513,21.5988,3861.6,3861.5,5.1899]
[1754598854320,3.7478,3861.6,3861.5,5.1899]
[1754598855421,3.7478,3861.6,3861.5,5.1174]
[1754598856020,3.7478,3861.6,3861.5,4.018]
[1754598856518,3.7332,3861.1,3861.0,4.37477]
[1754598856925,0.7343,3861.1,3861.0,5.16517]
[1754598857116,20.5006,3861.3,3861.2,3.20194]
[1754598857314,21.5842,3861.3,3861.2,4.08314]
[1754598857516,21.5842,3861.3,3861.2,1.4772]
[1754598857722,22.4571,3861.3,3861.2,2.8377]
[1754598858014,2.9989,3861.1,3861.0,2.41156]
[1754598858220,2.4254,3861.1,3861.0,2.41156]
[1754598858420,1.8179,3861.1,3861.0,2.41156]
[1754598858626,1.8179,3861.1,3861.0,4.28396]
[1754598858827,1.5099,3861.3,3861.2,0.51784]
[1754598859013,17.852,3861.4,3861.2,5.16514]
[1754598859218,3.7332,3861.3,3861.2,2.41154]
[1754598859717,17.852,3861.4,3861.2,5.16514]
[1754598859921,21.5852,3861.6,3861.5,5.1651]
[1754598860326,3.7332,3861.9,3861.8,5.16506]
[1754598860522,21.5852,3861.9,3861.8,5.16506]
[1754598860823,63.08372079,3861.9,3861.8,5.16506]
[1754598861023,62.3852,3861.9,3861.8,5.16506]
[1754598862927,44.5332,3861.9,3861.8,5.16506]
[1754598863123,62.3852,3861.9,3861.8,5.16506]
[1754598864419,44.5332,3861.9,3861.8,5.16506]
[1754598864616,62.3852,3861.9,3861.8,5.16506]
[1754598864816,44.5332,3861.9,3861.8,5.16506]
[1754598865128,59.3863,3861.9,3861.8,4.08306]
[1754598865422,1.8179,3861.9,3861.8,5.16506]
[1754598865623,2.6496,3862.4,3862.3,0.51769]
[1754598865928,20.5016,3862.4,3862.3,4.43739]
[1754598866129,22.0735016,3862.4,3862.3,3.9197]
[1754598866324,5.3051016,3862.4,3862.3,0.8812]
[1754598866524,4.6061,3862.1,3862.0,2.78533]
[1754598867027,3.7332,3861.5,3861.4,4.08312]
[1754598867229,4.6061,3861.5,3861.4,2.56512]
[1754598867826,3.7332,3861.5,3861.4,0.51782]
[1754598868026,4.6061,3861.5,3861.4,3.35552]
[1754598868430,4.6061,3861.5,3861.4,5.16512]
[1754598868730,3.7332,3861.5,3861.4,5.16512]
[1754598870622,4.6061,3861.5,3861.4,2.8377]
[1754598870827,4.6061,3861.5,3861.4,2.0473]
[1754598871232,4.6061,3861.5,3861.4,2.8377]
[1754598871533,4.6061,3861.5,3861.4,2.0473]
[1754598871935,4.6061,3861.5,3861.4,2.8377]
[1754598872634,4.6061,3861.5,3861.4,4.6473]
[1754598873239,3.7332,3861.5,3861.4,4.6473]
[1754598874330,19.725,3861.8,3861.7,0.7276]
[1754598874528,22.52392948,3861.8,3861.7,4.6473]
[1754598874733,4.67292948,3861.8,3861.7,4.6473]
[1754598874935,1.8179,3862.1,3862.0,2.41143]
[1754598875136,3.7332,3862.4,3862.3,5.16499]
[1754598875436,1.39054,3862.8,3862.6,4.08295]
[1754598875437,4.67292948,3862.7,3862.6,4.08295]
[1754598875632,5.54582948,3862.7,3862.6,2.8377]
[1754598876537,2.3932812,3862.7,3862.6,4.6473]
[1754598876732,17.851,3862.8,3862.6,5.16495]
[1754598877036,4.67297455,3862.7,3862.6,5.16495]
[1754598877239,4.67297455,3862.7,3862.6,4.6473]
[1754598878028,1.8179,3862.7,3862.6,4.6473]
[1754598878433,3.7332,3862.7,3862.6,4.6473]
[1754598880134,4.6061,3862.7,3862.6,2.8377]
[1754598880943,4.6061,3862.7,3862.6,3.5653]
[1754598881143,3.7332,3862.7,3862.6,4.6473]
[1754598885442,1.38627391,3863.8,3862.6,2.7536]
[1754598885747,0.51757,3863.3,3863.1,4.5105]
[1754598885940,41.8708649,3863.2,3863.1,4.5105]
[1754598886142,42.7294,3863.2,3863.1,4.5105]
[1754598886542,42.9665206,3863.2,3863.1,4.5105]
[1754598886744,43.8104206,3863.2,3863.1,3.3926]
[1754598887656,4.577,3862.5,3862.4,3.22077]
[1754598888039,3.7331,3862.5,3862.4,5.02817]
[1754598888543,3.7331,3862.5,3862.4,2.7031]
[1754598888544,4.577,3862.5,3862.4,2.7031]
[1754598888749,4.577,3862.5,3862.4,1.922]
[1754598888954,4.577,3862.5,3862.4,2.7031]
[1754598889258,3.7331,3862.5,3862.4,4.5105]
[1754598890347,2.6476,3862.5,3862.3,0.51769]
[1754598890540,2.8994,3862.4,3862.3,3.91029]
[1754598890746,2.8994,3862.4,3862.3,5.02819]
[1754598891051,3.7331,3862.4,3862.3,5.02819]
[1754598891450,1.8037,3862.4,3862.0,0.835]
[1754598891654,3.7331,3862.0,3861.9,3.22085]
[1754598892051,3.7331,3862.0,3861.9,5.02825]
[1754598893243,3.7331,3862.3,3862.2,1.1943]
[1754598893448,21.5781,3862.3,3862.2,4.5105]
[1754598893654,3.7331,3862.3,3862.2,4.5105]
[1754598894246,3.7331,3862.3,3862.2,2.7031]
[1754598894541,4.577,3862.2,3862.1,0.835]
[1754598894747,4.577,3862.2,3862.1,1.4172]
[1754598895750,3.0417,3861.2,3861.1,2.5576]
[1754598895953,4.577,3861.2,3861.1,3.22096]
[1754598896149,44.5331,3861.2,3861.1,3.91046]
[1754598896453,45.377,3861.2,3861.1,0.835]
[1754598896645,3.7331,3861.0,3860.9,5.02838]
[1754598896949,3.0417,3861.5,3861.4,1.087]
[1754598897153,4.577,3861.2,3861.1,1.4172]
[1754598897543,4.84010178,3861.2,3861.1,1.4172]
[1754598897850,4.84010178,3861.2,3861.1,1.922]
[1754598898055,4.84010178,3861.2,3861.1,2.7031]
[1754598898251,4.577,3861.2,3861.1,2.7031]
[1754598898653,2.6374,3861.2,3861.1,3.3926]
[1754598898850,3.7331,3861.2,3861.1,4.5105]
[1754598899555,4.00445197,3861.2,3861.1,4.5105]
[1754598899751,40.8,3861.3,3861.2,2.29434]
[1754598899948,41.07135681,3861.3,3861.2,5.02834]
[1754598900248,0.27135681,3861.3,3861.2,5.02834]
[1754598900443,4.00445681,3862.0,3861.9,5.02825]
[1754598900648,41.07135681,3862.2,3862.1,5.02822]
[1754598900848,0.27135681,3862.2,3862.1,5.02822]
[1754598901049,0.27135681,3862.4,3862.3,5.02819]
[1754598901249,0.97019206,3862.7,3862.6,4.24705]
[1754598901449,0.27135681,3862.7,3862.6,5.02815]
[1754598901649,1.7871,3862.7,3862.6,5.02815]
[1754598902655,2.3704,3862.7,3862.6,5.02815]
[1754598902858,3.7331,3862.7,3862.6,5.02815]
[1754598903260,2.8994,3862.7,3862.6,5.02815]
[1754598905556,3.99576986,3863.0,3862.9,5.02811]
[1754598905757,44.79576986,3863.0,3862.9,5.02811]
[1754598906158,44.79576986,3863.0,3862.9,3.91021]
[1754598908058,62.63976986,3863.0,3862.9,3.91021]
[1754598908560,44.79576986,3863.0,3862.9,3.91021]
[1754598908762,63.48366986,3863.0,3862.9,3.3926]
[1754598909061,63.48366986,3863.0,3862.9,2.7031]
[1754598909561,63.48366986,3863.0,3862.9,1.922]
[1754598911164,1.6776,3862.6,3862.3,0.5822]
[1754598911362,4.577,3862.5,3862.4,0.835]
[1754598911552,4.83938694,3862.5,3862.4,1.922]
[1754598911757,0.26238694,3862.5,3862.4,4.5105]
[1754598912362,0.26238694,3862.6,3862.5,5.02817]
[1754598912557,19.6291,3862.7,3862.6,4.5105]
[1754598912762,19.6291,3862.7,3862.6,2.8944]
[1754598912962,19.6291,3862.7,3862.6,4.5105]
[1754598913364,1.7871,3862.7,3862.6,4.5105]
[1754598913566,0.6914,3862.7,3862.6,4.3849]
[1754598913964,1.7473,3862.7,3862.6,4.3849]
[1754598915567,0.6914,3862.7,3862.6,3.3818]
[1754598915769,3.6366,3862.7,3862.6,4.3741]
[1754598916977,3.6366,3862.7,3862.5,0.51767]
[1754598916978,4.487,3862.6,3862.5,1.4753]
[1754598917170,4.487,3862.6,3862.5,2.0041]
[1754598917475,3.6309,3862.6,3862.5,4.475]
[1754598917778,1.0559,3862.8,3862.7,3.8873]
[1754598917984,19.5826,3862.8,3862.7,4.99264]
[1754598918181,19.84527918,3862.8,3862.7,4.99264]
[1754598918478,22.59067918,3862.8,3862.7,3.4827]
[1754598918679,22.59067918,3862.8,3862.7,2.804]
[1754598919786,22.59067918,3862.8,3862.7,1.4753]
[1754598920078,22.59067918,3862.8,3862.7,0.8876]
[1754598920278,22.59050081,3862.8,3862.7,0.8876]
[1754598920677,1.7999,3862.5,3862.4,2.62648]
[1754598920879,3.6309,3862.5,3862.4,3.30518]
[1754598921482,3.6309,3862.5,3862.4,4.99268]
[1754598921781,3.09267,3862.5,3862.4,1.1165]
[1754598921986,3.4311,3862.5,3862.4,2.804]
[1754598922182,3.4311,3862.5,3862.4,0.8876]
[1754598922379,3.4311,3862.5,3862.4,2.804]
[1754598922683,4.487,3862.5,3862.4,2.804]
[1754598923084,4.487,3862.3,3862.2,1.4053]
[1754598923482,4.487,3862.3,3862.2,2.5218]
[1754598923784,3.7119,3861.9,3861.8,2.804]
[1754598924182,4.487,3861.9,3861.8,2.804]
[1754598924379,4.487,3861.9,3861.8,3.32175]
[1754598924576,3.6309,3861.9,3861.8,4.99275]
[1754598925484,3.6309,3861.9,3861.8,3.4827]
[1754598925784,4.487,3861.7,3861.6,3.32178]
[1754598925981,3.6309,3861.7,3861.6,2.804]
[1754598926187,3.6309,3861.7,3861.6,4.475]
[1754598926486,1.7416,3861.7,3861.6,4.475]
[1754598927683,2.5167,3861.7,3861.6,4.475]
[1754598928184,3.6309,3861.7,3861.6,4.475]
[1754598931285,0.25902593,3861.9,3861.6,4.475]
[1754598931482,0.25902593,3861.9,3861.8,4.475]
[1754598931682,1.31492593,3862.0,3861.9,4.99275]
[1754598931882,0.77673593,3862.2,3862.1,1.10542]
[1754598932187,4.40763593,3862.2,3862.1,4.99272]
[1754598932982,0.25902593,3862.2,3862.1,4.99272]
[1754598933286,1.29406,3862.9,3862.5,4.99266]
[1754598933287,0.6857,3862.6,3862.5,4.99266]
[1754598933586,0.95642579,3862.8,3862.7,4.99264]
[1754598933787,0.95642579,3862.9,3862.7,2.31284]
[1754598934087,0.25890166,3862.9,3862.8,4.475]
[1754598934786,1.7416,3863.0,3862.9,4.475]
[1754598935089,1.7416,3863.0,3862.9,4.99261]
[1754598935281,0.25893162,3863.2,3863.1,4.99259]
[1754598935486,0.25893162,3863.5,3863.4,4.99255]
[1754598935786,0.94463162,3863.7,3863.6,2.31272]
[1754598935986,2.00053162,3863.7,3863.6,5.19799706]
[1754598936188,0.6857,3863.7,3863.6,4.99252]
[1754598936390,1.7416,3863.7,3863.6,4.99252]
[1754598936785,2.3259,3863.7,3863.6,4.99252]
[1754598937295,2.08993162,3864.0,3863.8,0.51748]
[1754598937587,1.0559,3864.2,3864.0,0.51746]
[1754598937791,1.7416,3864.1,3864.0,2.31266]
[1754598938284,3.6309,3864.1,3864.0,3.4827]
[1754598938593,3.6309,3864.1,3864.0,4.475]
[1754598942091,4.487,3864.1,3864.0,2.0041]
[1754598942286,0.51751,3863.7,3863.4,0.51754]
[1754598942491,3.6309,3863.5,3863.4,2.43394]
[1754598942692,3.6309,3863.5,3863.4,4.99254]
[1754598943890,2.8558,3863.5,3863.4,4.99254]
[1754598944095,3.5983,3863.5,3863.4,4.99254]
[1754598946297,17.834,3863.9,3863.2,0.20483006]
[1754598946298,5.01895,3863.4,3863.3,1.41505]
[1754598946892,3.6035,3863.4,3863.3,4.98195]
[1754598947087,1.3232,3862.9,3862.8,2.82783]
[1754598947294,3.6035,3862.9,3862.8,4.98203]
[1754598948002,2.8548,3862.9,3862.8,4.98203]
[1754598948496,3.6035,3862.9,3862.8,1.95]
[1754598948694,4.5014,3862.9,3862.8,1.95]
[1754598949401,4.5014,3862.9,3862.8,1.4538]
[1754598949796,3.6035,3862.8,3862.3,0.20427396]
[1754598949996,4.12115,3862.7,3862.6,2.7105]
[1754598950196,4.12115,3862.7,3862.6,4.4644]
[1754598951102,3.6035,3862.7,3862.6,4.98204]
[1754598951700,4.5014,3862.7,3862.6,1.95]
[1754598951908,1.8116,3862.0,3861.9,3.18005]
[1754598952099,3.6035,3862.0,3861.9,5.19459496]
[1754598952902,2.3213,3862.0,3861.9,5.19459496]
[1754598957307,3.07,3862.3,3862.2,2.28251]
[1754598957505,3.6035,3862.3,3862.2,4.98211]
[1754598959302,3.6035,3862.3,3862.2,3.94051]
[1754598959501,4.5014,3862.3,3862.2,1.95]
[1754598960004,4.5014,3862.3,3862.2,2.7105]
[1754598960409,3.2078,3862.4,3862.3,4.98209]
[1754598960604,4.9546,3862.4,3862.3,4.98209]
[1754598960798,7.7092,3862.4,3862.3,3.22819]
[1754598961307,7.7092,3862.4,3862.3,2.7105]
[1754598961813,6.8113,3862.4,3862.3,4.4644]
[1754598966513,6.8113,3862.4,3862.3,2.7105]
[1754598967318,7.7092,3862.4,3862.3,1.95]
[1754598967612,7.7092,3862.4,3862.3,1.4538]
[1754598967811,7.7092,3862.4,3862.3,2.7105]
[1754598968113,7.7092,3862.4,3862.3,3.4228]
[1754598968419,6.8113,3862.4,3862.3,4.4644]
[1754598969813,3.2078,3862.4,3862.3,4.4644]
[1754598970812,4.9546,3862.4,3862.3,4.4644]
[1754598971111,6.8113,3862.4,3862.3,4.4644]
[1754598973713,2.3213,3862.4,3862.3,4.4644]
[1754598974411,3.0458,3862.4,3862.3,4.4644]
[1754598974615,1.7468,3862.4,3862.3,4.4644]
[1754598976217,2.4713,3862.4,3862.3,4.4644]
[1754598976416,3.0223,3862.4,3862.3,4.4644]
[1754598977219,1.7468,3862.4,3862.3,4.4644]
[1754598977618,3.0223,3862.4,3862.3,4.4644]
[1754598977807,3.5218,3862.4,3862.3,4.4644]
[1754598978008,2.39142,3862.2,3862.1,1.95041]
[1754598978210,2.39142,3862.2,3861.4,1.29452]
[1754598978211,1.7381,3861.9,3861.4,1.5706]
[1754598978515,2.7935,3861.5,3861.4,2.55863149]
[1754598978716,3.518,3861.5,3861.4,2.35601]
[1754598978922,3.518,3861.5,3861.4,4.85971]
[1754598979314,1.57311,3862.2,3862.1,0.51772]
[1754598979519,2.7935,3862.2,3862.1,4.85962]
[1754598979715,3.518,3862.2,3862.1,4.85962]
[1754598980022,1.743,3862.2,3862.1,4.85962]
[1754598980223,2.4675,3862.2,3862.1,4.85962]
[1754598980423,3.0185,3862.2,3862.1,4.85962]
[1754598980720,1.99885017,3862.5,3862.4,4.85958]
[1754598980920,1.743,3862.5,3862.4,4.85958]
[1754598982123,5.6704,3862.8,3862.7,3.3646]
[1754598982320,5.6704,3862.8,3862.7,4.3419]
[1754598982618,7.42550623,3862.8,3862.7,3.3646]
[1754598982824,8.24870623,3862.8,3862.7,2.6664]
[1754598983025,8.24870623,3862.8,3862.7,1.924]
[1754598983212,8.48740658,3862.8,3862.7,1.924]
[1754598983415,8.48740658,3862.8,3862.7,2.6664]
[1754598983416,8.48724773,3862.8,3862.7,2.6664]
[1754598983623,8.48723015,3862.8,3862.7,2.6664]
[1754598984217,8.48723015,3862.8,3862.7,4.3419]
[1754598984418,6.96448277,3862.8,3862.7,4.3419]
[1754598984618,6.7258,3862.8,3862.7,4.3419]
[1754598985427,4.9508,3862.8,3862.7,4.3419]
[1754598986024,3.2078,3862.8,3862.7,4.3419]
[1754598987921,3.518,3863.1,3863.0,4.8595]
[1754598988625,3.518,3863.1,3863.0,4.3419]
[1754598989024,4.3412,3863.1,3863.0,4.3419]
[1754598989627,4.3412,3863.1,3863.0,3.3646]
[1754598990128,4.3412,3863.1,3863.0,4.3419]
[1754598990930,3.518,3863.1,3863.0,4.3419]
[1754598991228,2.7935,3863.1,3863.0,4.3419]
[1754598991530,3.518,3863.1,3863.0,4.3419]
[1754598991828,1.743,3863.2,3863.1,2.31159]
[1754598992023,1.743,3863.2,3863.1,4.85949]
[1754598992625,3.0185,3863.2,3863.1,4.85949]
[1754598993128,3.518,3863.2,3863.1,4.85949]
[1754598993829,4.3412,3863.2,3863.1,3.88219]
[1754598994629,4.3412,3863.2,3863.1,3.18399]
[1754598995929,3.518,3863.2,3863.1,2.44159]
[1754598996131,4.3412,3863.2,3863.1,1.34579]
[1754598996730,4.3412,3863.2,3863.1,0.8282]
[1754598999732,4.3412,3863.2,3863.1,1.4327]
[1754599001433,4.3412,3863.0,3862.9,1.34581]
[1754599002323,4.3412,3863.0,3862.9,1.95031]
[1754599002536,4.3412,3863.0,3862.9,2.69271]
[1754599003635,4.3412,3863.0,3862.9,3.18401]
[1754599004734,3.518,3863.0,3862.9,4.80741]
[1754599004929,3.2078,3863.1,3862.9,3.23681]
[1754599005130,1.6297,3863.0,3862.9,2.26901]
[1754599005525,3.2078,3863.1,3863.0,2.6408]
[1754599005736,3.2078,3863.1,3863.0,4.3201]
[1754599007432,4.1765,3863.1,3863.0,4.3201]
[1754599007634,4.8375,3863.1,3863.0,4.3201]
[1754599007838,6.1357,3863.1,3863.0,4.3201]
[1754599008034,6.6448,3863.1,3863.0,4.3201]
[1754599008743,3.2078,3863.1,3863.0,4.3201]
[1754599009438,3.2078,3863.5,3863.3,2.19686]
[1754599009637,0.9687,3863.4,3863.3,1.64566]
[1754599010034,0.9687,3863.4,3863.3,3.39116]
[1754599010436,0.9687,3863.7,3863.3,1.64566]
[1754599010637,0.9687,3863.7,3863.6,3.39112]
[1754599010641,1.6297,3863.7,3863.6,3.39112]
[1754599011235,4.3779,3864.3,3864.2,0.51744]
[1754599011545,6.77213002,3864.3,3864.2,3.39104]
[1754599012241,6.0677,3864.3,3864.2,3.39104]
[1754599014145,0.9687,3864.6,3864.5,0.5174]
[1754599014444,3.8518,3865.0,3864.9,3.38005]
[1754599014639,45.93282273,3865.0,3864.9,3.93125]
[1754599014840,45.2289,3865.0,3864.9,3.93125]
[1754599015138,2.6297,3865.0,3864.9,3.93125]
[1754599015339,4.4289,3865.0,3864.9,3.93125]
[1754599017944,4.94623,3865.0,3864.8,0.51735]
[1754599018246,3.4289,3864.9,3864.8,0.51735]
[1754599018547,3.4289,3864.9,3864.8,2.31875]
[1754599018945,3.4289,3864.9,3864.8,3.27565]
[1754599019447,3.4289,3864.9,3864.8,2.7583]
[1754599020040,3.4289,3864.9,3864.8,1.8014]
[1754599020243,1.23037,3864.7,3864.3,1.4294]
[1754599020438,1.6297,3864.1,3864.0,3.4139]
[1754599020650,3.4289,3864.1,3864.0,2.97447]
[1754599021044,3.4289,3864.1,3864.0,3.93137]
[1754599024143,2.2068,3864.1,3864.0,3.93137]
[1754599024454,1.6297,3864.1,3864.0,3.93137]
[1754599024655,1.6297,3864.5,3864.4,3.93131]
[1754599024850,6.6367,3864.7,3864.6,2.97439]
[1754599025048,6.6367,3864.7,3864.6,2.31879]
[1754599025742,6.6367,3864.7,3864.6,1.0237]
[1754599026352,6.6367,3864.7,3864.6,1.8014]
[1754599028052,2.9198,3864.7,3864.6,3.4139]
[1754599028259,3.4289,3864.7,3864.6,3.4139]
[1754599028649,3.4289,3864.7,3864.6,2.457]
[1754599029254,3.4289,3864.7,3864.6,3.4139]
[1754599030059,3.4289,3864.7,3864.6,4.3092]
[1754599030862,2.7472,3865.0,3864.9,4.04885]
[1754599031162,2.7472,3865.0,3864.9,4.82655]
[1754599031356,1.0,3865.0,3864.9,4.82655]
[1754599032467,1.0,3865.0,3864.9,8.03435]
[1754599033063,0.2197,3865.0,3864.9,8.03435]
[1754599033262,3.2078,3865.6,3865.5,4.74066]
[1754599033865,4.2248,3865.6,3865.5,4.74066]
[1754599034066,4.8907,3865.6,3865.5,4.74066]
[1754599034770,0.7702,3865.8,3865.7,2.24014]
[1754599035064,4.6439,3866.1,3866.0,1.0837]
[1754599035270,5.3893,3866.1,3866.0,4.7406]
[1754599035462,6.7211,3866.1,3866.0,4.7406]
[1754599035858,3.2078,3866.1,3866.0,4.7406]
[1754599036065,6.7211,3866.1,3866.0,4.7406]
[1754599037163,6.7211,3866.1,3866.0,3.2915]
[1754599037361,1.7261,3865.9,3865.8,0.51722]
[1754599037563,4.419,3865.9,3865.8,1.35442]
[1754599037770,4.419,3865.9,3865.8,1.92092]
[1754599037970,4.419,3865.9,3865.8,2.40872]
[1754599038171,4.419,3865.9,3865.8,3.14012]
[1754599039774,3.5133,3865.9,3865.8,3.80872]
[1754599039971,2.1815,3865.9,3865.8,4.74062]
[1754599041374,2.9517,3865.9,3865.8,4.74062]
[1754599041869,3.5133,3865.9,3865.8,4.74062]
[1754599042474,4.419,3865.9,3865.8,4.74062]
[1754599042680,3.5133,3865.9,3865.8,4.74062]
[1754599044775,4.419,3865.9,3865.8,3.80872]
[1754599045077,4.419,3865.9,3865.8,3.14012]
[1754599045877,4.419,3865.9,3865.8,4.07202]
[1754599046974,3.5133,3865.9,3865.8,4.74062]